fUST/lending_fUST_20250828
["ID","MTS","AMOUNT","RATE_DAILY","PERIOD"]
[381809465,1756356684790,-832.27954556,0.00021468,2]
[381809466,1756356684799,-1500.0,0.00021468,2]
[381809467,1756356684809,-1500.0,0.00021468,2]
[381809468,1756356684818,-1500.0,0.00021468,2]
[381809469,1756356684828,-1001.15461714,0.00021468,2]
[381809470,1756356684838,-1510.26063339,0.00021468,2]
[381809471,1756356684849,-1500.0,0.00021468,2]
[381809472,1756356684858,-505.34538249,0.00021468,2]
[381809473,1756356684868,-1500.0,0.00021468,2]
[381809474,1756356684878,-715.83401308,0.00021468,2]
[381809475,1756356684888,-1500.0,0.00021468,2]
[381809476,1756356684898,-2509.68,0.00021473,3]
[381809477,1756356684908,-1254.84,0.00021473,3]
[381809478,1756356684917,-627.42,0.00021473,3]
[381809479,1756356684927,-313.7,0.00021473,3]
[381809480,1756356684937,-5019.36,0.00021476,3]
[381809481,1756356684946,-480.0,0.00021484,2]
[381809482,1756356684955,-201.82760092,0.00021484,2]
[381809483,1756356684965,-939.37,0.00021484,2]
[381809484,1756356684975,-500.63,0.00021484,2]
[381809485,1756356684985,-480.0,0.00021484,2]
[381809486,1756356684995,-480.0,0.00021484,2]
[381809487,1756356685004,-480.0,0.00021484,2]
[381809488,1756356685014,-480.0,0.00021484,2]
[381809489,1756356685024,-480.0,0.00021484,2]
[381809490,1756356685034,-480.0,0.00021484,2]
[381809491,1756356685044,-480.0,0.00021484,2]
[381809492,1756356685053,-480.0,0.00021484,2]
[381809493,1756356685063,-480.0,0.00021484,2]
[381809494,1756356685073,-644.18,0.00021484,2]
[381809495,1756356685083,-480.0,0.00021484,2]
[381809496,1756356685092,-480.0,0.00021484,2]
[381809497,1756356685102,-480.0,0.00021484,2]
[381809498,1756356685111,-480.0,0.00021484,2]
[381809499,1756356685122,-480.0,0.00021484,2]
[381809500,1756356685132,-480.0,0.00021484,2]
[381809501,1756356685142,-480.0,0.00021484,2]
[381809502,1756356685152,-480.0,0.00021484,2]
[381809503,1756356685161,-480.0,0.00021484,2]
[381809504,1756356685174,-617.45,0.00021484,2]
[381809505,1756356685185,-570.55,0.00021484,2]
[381809506,1756356685196,-480.0,0.00021484,2]
[381809507,1756356685206,-616.29,0.00021484,2]
[381809508,1756356685215,-1200.27,0.00021484,2]
[381809509,1756356685226,-480.0,0.00021484,2]
[381809510,1756356685236,-397.0868977,0.00021484,2]
[381809511,1756356685246,-601.73,0.00021484,2]
[381809512,1756356685256,-480.0,0.00021484,2]
[381809513,1756356685265,-480.0,0.00021484,2]
[381809514,1756356685276,-480.0,0.00021484,2]
[381809515,1756356685287,-1428.02,0.00021484,2]
[381809516,1756356685297,-484.69873127,0.00021484,2]
[381809517,1756356685306,-480.0,0.00021484,2]
[381809518,1756356685315,-2722.72,0.00021484,2]
[381809519,1756356685325,-480.0,0.00021484,2]
[381809520,1756356685335,-480.0,0.00021484,2]
[381809521,1756356685345,-480.0,0.00021484,2]
[381809522,1756356685355,-480.0,0.00021484,2]
[381809523,1756356685365,-275.64,0.00021484,2]
[381809524,1756356685375,-480.0,0.00021484,2]
[381809525,1756356685385,-480.0,0.00021484,2]
[381809526,1756356685395,-4245.17,0.00021484,2]
[381809527,1756356685405,-480.0,0.00021484,2]
[381809528,1756356685415,-480.0,0.00021484,2]
[381809529,1756356685424,-480.0,0.00021484,2]
[381809530,1756356685434,-480.0,0.00021484,2]
[381809531,1756356685444,-480.0,0.00021484,2]
[381809532,1756356685454,-480.0,0.00021484,2]
[381809533,1756356685464,-541.84,0.00021484,2]
[381809534,1756356685473,-480.0,0.00021484,2]
[381809535,1756356685482,-480.0,0.00021484,2]
[381809536,1756356685492,-480.0,0.00021484,2]
[381809537,1756356685501,-480.0,0.00021484,2]
[381809538,1756356685511,-568.72,0.00021484,2]
[381809539,1756356685523,-1881.85,0.00021484,2]
[381809540,1756356685532,-480.0,0.00021484,2]
[381809541,1756356685541,-480.0,0.00021484,2]
[381809542,1756356685551,-662.5,0.00021484,2]
[381809543,1756356685562,-554.0,0.00021484,2]
[381809544,1756356685571,-480.0,0.00021484,2]
[381809545,1756356685581,-480.0,0.00021484,2]
[381809546,1756356685591,-480.0,0.00021486,2]
[381809547,1756356685602,-2673.38,0.00021486,2]
[381809548,1756356685611,-3486.98,0.00021486,2]
[381809549,1756356685621,-1278.52,0.00021486,2]
[381809550,1756356685630,-562.42,0.00021486,2]
[381809551,1756356685640,-1660.3,0.00021486,2]
[381809552,1756356685649,-941.02,0.00021486,2]
[381809553,1756356685659,-811.95,0.00021486,2]
[381809554,1756356685815,-1515.77,0.00021486,2]
[381809555,1756356685824,-592.54,0.00021486,2]
[381809556,1756356685834,-760.29,0.00021486,2]
[381809557,1756356685844,-1016.7,0.00021486,2]
[381809558,1756356685853,-480.0,0.00021486,2]
[381809559,1756356685862,-481.84850959,0.00021486,2]
[381809560,1756356685872,-530.32,0.00021486,2]
[381809561,1756356685881,-1850.6,0.00021486,2]
[381809562,1756356685891,-1997.18,0.00021486,2]
[381809563,1756356685900,-1812.86,0.00021486,2]
[381809564,1756356685910,-542.84,0.00021486,2]
[381809565,1756356685919,-3158.22279266,0.000215,2]
[381809566,1756356685929,-10038.7,0.0002154,3]
[381809567,1756356685938,-480.0,0.00021554,2]
[381809568,1756356685948,-512.47,0.00021554,2]
[381809569,1756356685957,-480.0,0.00021554,2]
[381809570,1756356685967,-708.4,0.00021554,2]
[381809571,1756356685976,-1021.12,0.00021554,2]
[381809572,1756356685986,-1536.3,0.00021554,2]
[381809573,1756356685996,-853.77,0.00021554,2]
[381809574,1756356686006,-584.77,0.00021554,2]
[381809575,1756356686015,-480.0,0.00021554,2]
[381809576,1756356686027,-545.28,0.00021554,2]
[381809577,1756356686036,-686.06,0.00021554,2]
[381809578,1756356686048,-480.0,0.00021554,2]
[381809579,1756356686057,-694.72,0.00021554,2]
[381809580,1756356686066,-480.0,0.00021554,2]
[381809581,1756356686076,-480.0,0.00021554,2]
[381809582,1756356686088,-1147.93,0.00021554,2]
[381809583,1756356686098,-677.79,0.00021554,2]
[381809584,1756356686107,-1123.67,0.00021554,2]
[381809585,1756356686117,-544.12,0.00021554,2]
[381809586,1756356686127,-776.24,0.00021554,2]
[381809587,1756356686136,-480.0,0.00021554,2]
[381809588,1756356686146,-518.51,0.00021554,2]
[381809589,1756356686156,-498.32,0.00021554,2]
[381809590,1756356686165,-1614.03,0.00021554,2]
[381809591,1756356686175,-997.72,0.00021554,2]
[381809592,1756356686184,-586.07,0.00021554,2]
[381809593,1756356686194,-480.0,0.00021554,2]
[381809594,1756356686203,-487.54,0.00021554,2]
[381809595,1756356686213,-535.44,0.00021554,2]
[381809596,1756356686223,-687.49,0.00021554,2]
[381809597,1756356686232,-783.92,0.00021554,2]
[381809598,1756356686242,-855.7,0.00021554,2]
[381809599,1756356686252,-480.0,0.00021554,2]
[381809600,1756356686262,-501.01,0.00021554,2]
[381809601,1756356686272,-543.48,0.00021554,2]
[381809602,1756356686282,-1003.05,0.00021554,2]
[381809603,1756356686291,-1200.0,0.00021554,2]
[381809604,1756356686301,-480.0,0.00021554,2]
[381809605,1756356686311,-1135.77,0.00021554,2]
[381809606,1756356686321,-921.25,0.00021554,2]
[381809607,1756356686331,-736.35,0.00021554,2]
[381809608,1756356686340,-480.0,0.00021554,2]
[381809609,1756356686350,-489.03,0.00021554,2]
[381809610,1756356686359,-1501.6,0.00021554,2]
[381809611,1756356686372,-480.0,0.00021554,2]
[381809612,1756356686383,-480.0,0.00021554,2]
[381809613,1756356686393,-586.28,0.00021554,2]
[381809614,1756356686402,-687.31,0.00021554,2]
[381809615,1756356686412,-490.1,0.00021554,2]
[381809616,1756356686421,-543.14,0.00021554,2]
[381809617,1756356686431,-1457.75,0.00021554,2]
[381809618,1756356686440,-480.0,0.00021554,2]
[381809619,1756356686451,-1828.87,0.00021554,2]
[381809620,1756356686461,-480.0,0.00021554,2]
[381809621,1756356686471,-480.0,0.00021554,2]
[381809622,1756356686481,-480.0,0.00021554,2]
[381809623,1756356686491,-503.14,0.00021554,2]
[381809624,1756356686500,-480.0,0.00021554,2]
[381809625,1756356686511,-480.0,0.00021554,2]
[381809626,1756356686525,-749.19,0.00021554,2]
[381809627,1756356686534,-1023.93,0.00021554,2]
[381809628,1756356686543,-4065.99,0.00021554,2]
[381809629,1756356686554,-480.0,0.00021554,2]
[381809630,1756356686563,-571.63,0.00021554,2]
[381809631,1756356686573,-1376.72,0.00021554,2]
[381809632,1756356686583,-480.0,0.00021554,2]
[381809633,1756356686593,-2297.07,0.00021554,2]
[381809634,1756356686603,-799.5,0.00021554,2]
[381809635,1756356686612,-480.0,0.00021554,2]
[381809636,1756356686623,-633.53,0.00021554,2]
[381809637,1756356686633,-480.0,0.00021554,2]
[381809638,1756356686642,-244.31567726,0.00021554,2]
[381809639,1756356686651,-480.0,0.00021554,2]
[381809640,1756356686660,-480.0,0.00021554,2]
[381809641,1756356686670,-1204.91,0.00021554,2]
[381809642,1756356686679,-480.0,0.00021554,2]
[381809643,1756356686688,-664.77,0.00021554,2]
[381809644,1756356686698,-691.19,0.00021554,2]
[381809645,1756356686707,-480.0,0.00021558,2]
[381809646,1756356686716,-3421.67,0.00021558,2]
[381809647,1756356686725,-2533.07,0.00021558,2]
[381809648,1756356686734,-480.0,0.00021558,2]
[381809649,1756356686743,-480.0,0.00021558,2]
[381809650,1756356686752,-480.0,0.00021558,2]
[381809651,1756356686762,-480.0,0.00021558,2]
[381809652,1756356686771,-618.76,0.00021558,2]
[381809653,1756356686780,-1162.67,0.00021558,2]
[381809654,1756356686790,-480.0,0.00021558,2]
[381809655,1756356686799,-990.59,0.00021558,2]
[381809656,1756356686810,-5148.52,0.00021558,2]
[381809657,1756356686819,-611.25,0.00021558,2]
[381809658,1756356686828,-2671.32,0.00021558,2]
[381809659,1756356686837,-649.08,0.00021558,2]
[381809660,1756356686846,-5025.34,0.00021558,2]
[381809661,1756356686856,-668.07,0.00021558,2]
[381809662,1756356686865,-1650.5,0.00021558,2]
[381809663,1756356686874,-480.0,0.00021558,2]
[381809664,1756356686883,-480.0,0.0002156,2]
[381809665,1756356686892,-480.0,0.0002156,2]
[381809666,1756356686902,-480.0,0.0002156,2]
[381809667,1756356686911,-480.0,0.0002156,2]
[381809668,1756356686920,-480.0,0.0002156,2]
[381809669,1756356686929,-480.0,0.0002156,2]
[381809670,1756356686938,-480.0,0.0002156,2]
[381809671,1756356686947,-480.0,0.0002156,2]
[381809672,1756356686956,-480.0,0.0002156,2]
[381809673,1756356686965,-217.92505324,0.0002156,2]
[381809674,1756356686974,-480.0,0.0002156,2]
[381809675,1756356686983,-622.73,0.0002156,2]
[381809676,1756356686992,-1146.81,0.0002156,2]
[381809677,1756356687002,-500.14,0.0002156,2]
[381809678,1756356687011,-480.0,0.0002156,2]
[381809679,1756356687020,-480.0,0.0002156,2]
[381809680,1756356687030,-480.0,0.0002156,2]
[381809681,1756356687039,-642.24,0.0002156,2]
[381809682,1756356687048,-480.0,0.0002156,2]
[381809683,1756356687057,-747.48,0.0002156,2]
[381809684,1756356687067,-700.51,0.0002156,2]
[381809685,1756356687075,-480.0,0.0002156,2]
[381809686,1756356687085,-480.0,0.0002156,2]
[381809687,1756356687095,-480.0,0.0002156,2]
[381809688,1756356687104,-480.0,0.0002156,2]
[381809689,1756356687115,-480.0,0.0002156,2]
[381809690,1756356687124,-480.0,0.0002156,2]
[381809691,1756356687133,-610.79,0.0002156,2]
[381809692,1756356687143,-697.37,0.0002156,2]
[381809693,1756356687152,-485.48,0.0002156,2]
[381809694,1756356687161,-480.0,0.0002156,2]
[381809695,1756356687170,-479.54842179,0.0002156,2]
[381809696,1756356687179,-480.0,0.0002156,2]
[381809697,1756356687188,-499.7,0.0002156,2]
[381809698,1756356687198,-943.25,0.0002156,2]
[381809699,1756356687208,-480.0,0.0002156,2]
[381809700,1756356687217,-701.41,0.0002156,2]
[381809701,1756356687226,-925.93,0.0002156,2]
[381809702,1756356687236,-480.0,0.0002156,2]
[381809703,1756356687245,-480.0,0.0002156,2]
[381809704,1756356687255,-480.0,0.0002156,2]
[381809705,1756356687264,-536.25,0.0002156,2]
[381809706,1756356687273,-845.24,0.0002156,2]
[381809707,1756356687282,-688.62,0.0002156,2]
[381809708,1756356687291,-586.1,0.0002156,2]
[381809709,1756356687301,-480.0,0.0002156,2]
[381809710,1756356687310,-581.67,0.0002156,2]
[381809711,1756356687319,-480.0,0.0002156,2]
[381809712,1756356687328,-480.0,0.0002156,2]
[381809713,1756356687338,-480.0,0.0002156,2]
[381809714,1756356687347,-570.61,0.0002156,2]
[381809715,1756356687356,-1192.99,0.0002156,2]
[381809716,1756356687365,-480.0,0.0002156,2]
[381809717,1756356687374,-782.62,0.0002156,2]
[381809718,1756356687383,-556.25,0.0002156,2]
[381809719,1756356687392,-480.0,0.0002156,2]
[381809720,1756356687402,-883.69,0.0002156,2]
[381809721,1756356687411,-480.0,0.0002156,2]
[381809722,1756356687420,-480.0,0.0002156,2]
[381809723,1756356687429,-480.0,0.0002156,2]
[381809724,1756356687438,-480.0,0.0002156,2]
[381809725,1756356687447,-480.0,0.0002156,2]
[381809726,1756356687457,-480.0,0.0002156,2]
[381809727,1756356687466,-888.61,0.0002156,2]
[381809728,1756356687475,-482.53557568,0.0002156,2]
[381809729,1756356687484,-929.96,0.0002156,2]
[381809730,1756356687493,-480.0,0.0002156,2]
[381809731,1756356687502,-480.0,0.0002156,2]
[381809732,1756356687511,-480.0,0.0002156,2]
[381809733,1756356687524,-532.14,0.0002156,2]
[381809734,1756356687533,-480.0,0.0002156,2]
[381809735,1756356687543,-480.0,0.0002156,2]
[381809736,1756356687553,-480.0,0.0002156,2]
[381809737,1756356687563,-480.0,0.0002156,2]
[381809738,1756356687572,-480.0,0.0002156,2]
[381809739,1756356687581,-1377.69,0.0002156,2]
[381809740,1756356687591,-480.0,0.0002156,2]
[381809741,1756356687600,-678.55,0.0002156,2]
[381809742,1756356687610,-480.0,0.0002156,2]
[381809743,1756356687620,-601.87,0.0002156,2]
[381809744,1756356687629,-480.0,0.0002156,2]
[381809745,1756356687638,-480.0,0.0002156,2]
[381809746,1756356687648,-297.45630994,0.0002156,2]
[381809747,1756356687657,-523.35206437,0.0002156,2]
[381809748,1756356687666,-517.59,0.0002156,2]
[381809749,1756356687675,-480.0,0.0002156,2]
[381809750,1756356687686,-480.0,0.0002156,2]
[381809751,1756356687695,-524.07,0.0002156,2]
[381809752,1756356687704,-480.0,0.0002156,2]
[381809753,1756356687714,-488.41,0.0002156,2]
[381809754,1756356687723,-1224.27,0.0002156,2]
[381809755,1756356687732,-480.0,0.0002156,2]
[381809756,1756356687741,-664.64,0.0002156,2]
[381809757,1756356687750,-892.32,0.0002156,2]
[381809758,1756356687759,-500.0,0.0002156,2]
[381809759,1756356687768,-480.0,0.0002156,2]
[381809760,1756356687777,-570.25790931,0.0002156,2]
[381809761,1756356687786,-480.0,0.0002156,2]
[381809762,1756356687795,-639.32,0.0002156,2]
[381809763,1756356687804,-480.0,0.0002156,2]
[381809764,1756356687813,-480.0,0.0002156,2]
[381809765,1756356687822,-480.0,0.0002156,2]
[381809766,1756356687831,-480.0,0.0002156,2]
[381809767,1756356687840,-480.0,0.0002156,2]
[381809768,1756356687849,-480.0,0.0002156,2]
[381809769,1756356687858,-480.0,0.0002156,2]
[381809770,1756356687869,-527.37,0.0002156,2]
[381809771,1756356687878,-480.0,0.0002156,2]
[381809772,1756356687887,-480.0,0.0002156,2]
[381809773,1756356687896,-610.89,0.0002156,2]
[381809774,1756356687906,-480.0,0.0002156,2]
[381809775,1756356687915,-480.0,0.0002156,2]
[381809776,1756356687924,-507.04,0.0002156,2]
[381809777,1756356687933,-480.0,0.0002156,2]
[381809778,1756356687942,-480.0,0.0002156,2]
[381809779,1756356687951,-541.0,0.0002156,2]
[381809780,1756356687960,-480.0,0.0002156,2]
[381809781,1756356687969,-480.0,0.0002156,2]
[381809782,1756356687978,-935.42,0.0002156,2]
[381809783,1756356687988,-728.91,0.0002156,2]
[381809784,1756356687997,-480.0,0.0002156,2]
[381809785,1756356688005,-480.0,0.0002156,2]
[381809786,1756356688015,-480.0,0.0002156,2]
[381809787,1756356688024,-480.0,0.0002156,2]
[381809788,1756356688033,-512.28,0.0002156,2]
[381809789,1756356688042,-480.0,0.0002156,2]
[381809790,1756356688051,-480.0,0.0002156,2]
[381809791,1756356688060,-671.05,0.0002156,2]
[381809792,1756356688069,-480.0,0.0002156,2]
[381809793,1756356688078,-480.0,0.0002156,2]
[381809794,1756356688087,-480.0,0.0002156,2]
[381809795,1756356688097,-480.0,0.0002156,2]
[381809796,1756356688107,-480.0,0.0002156,2]
[381809797,1756356688116,-480.0,0.0002156,2]
[381809798,1756356688125,-480.0,0.0002156,2]
[381809799,1756356688134,-528.67,0.0002156,2]
[381809800,1756356688143,-587.59,0.0002156,2]
[381809801,1756356688152,-622.69,0.0002156,2]
[381809802,1756356688162,-706.72,0.0002156,2]
[381809803,1756356688171,-411.81344093,0.0002156,2]
[381809804,1756356688181,-920.23,0.0002156,2]
[381809805,1756356688190,-480.0,0.0002156,2]
[381809806,1756356688200,-480.0,0.0002156,2]
[381809807,1756356688210,-228.48370293,0.0002156,2]
[381809808,1756356688344,-480.0,0.0002156,2]
[381809809,1756356688371,-480.0,0.0002156,2]
[381809810,1756356688380,-729.8,0.0002156,2]
[381809811,1756356688390,-480.0,0.0002156,2]
[381809812,1756356688399,-480.0,0.0002156,2]
[381809813,1756356688408,-480.0,0.0002156,2]
[381809814,1756356688418,-1083.02,0.0002156,2]
[381809815,1756356688427,-621.43,0.0002156,2]
[381809816,1756356688436,-480.0,0.0002156,2]
[381809817,1756356688446,-519.69,0.0002156,2]
[381809818,1756356688456,-523.86,0.0002156,2]
[381809819,1756356688465,-561.73,0.0002156,2]
[381809820,1756356688475,-494.37,0.0002156,2]
[381809821,1756356688485,-691.54,0.0002156,2]
[381809822,1756356688494,-397.09743553,0.0002156,2]
[381809823,1756356688504,-480.0,0.0002156,2]
[381809824,1756356688514,-480.0,0.0002156,2]
[381809825,1756356688526,-492.19,0.0002156,2]
[381809826,1756356688537,-891.36,0.0002156,2]
[381809827,1756356688547,-480.0,0.0002156,2]
[381809828,1756356688556,-683.2,0.0002156,2]
[381809829,1756356688567,-1205.3,0.0002156,2]
[381809830,1756356688576,-641.39,0.0002156,2]
[381809831,1756356688585,-480.0,0.0002156,2]
[381809832,1756356688595,-480.0,0.0002156,2]
[381809833,1756356688606,-480.0,0.0002156,2]
[381809834,1756356688617,-624.84,0.0002156,2]
[381809835,1756356688626,-587.8,0.0002156,2]
[381809836,1756356688636,-480.0,0.0002156,2]
[381809837,1756356688646,-482.09198648,0.0002156,2]
[381809838,1756356688656,-480.0,0.0002156,2]
[381809839,1756356688666,-508.69,0.0002156,2]
[381809840,1756356688675,-597.29,0.0002156,2]
[381809841,1756356688684,-480.0,0.0002156,2]
[381809842,1756356688693,-656.82,0.0002156,2]
[381809843,1756356688702,-352.14546826,0.0002156,2]
[381809844,1756356688712,-513.64,0.0002156,2]
[381809845,1756356688721,-555.82,0.0002156,2]
[381809846,1756356688730,-480.0,0.0002156,2]
[381809847,1756356688739,-480.0,0.0002156,2]
[381809848,1756356688749,-480.0,0.0002156,2]
[381809849,1756356688758,-852.11,0.0002156,2]
[381809850,1756356688768,-480.0,0.0002156,2]
[381809851,1756356688777,-664.95,0.0002156,2]
[381809852,1756356688787,-468.32295772,0.0002156,2]
[381809853,1756356688798,-480.0,0.0002156,2]
[381809854,1756356688808,-480.0,0.0002156,2]
[381809855,1756356688819,-480.0,0.0002156,2]
[381809856,1756356688829,-595.33,0.0002156,2]
[381809857,1756356688839,-480.0,0.0002156,2]
[381809858,1756356688848,-480.0,0.0002156,2]
[381809859,1756356688859,-532.87,0.0002156,2]
[381809860,1756356688869,-857.97,0.0002156,2]
[381809861,1756356688878,-328.06369466,0.0002156,2]
[381809862,1756356688887,-631.3,0.0002156,2]
[381809863,1756356688897,-480.0,0.0002156,2]
[381809864,1756356688907,-480.0,0.0002156,2]
[381809865,1756356688916,-8091.62,0.00021567,2]
[381809866,1756356688925,-1746.61,0.00021567,2]
[381809867,1756356688935,-6670.63,0.00021567,2]
[381809868,1756356688944,-900.02168337,0.00021568,2]
[381809869,1756356688955,-1500.0,0.00021568,2]
[381809870,1756356688964,-1500.0,0.00021568,2]
[381809871,1756356688974,-500.0,0.00021568,2]
[381809872,1756356688983,-1500.0,0.00021568,2]
[381809873,1756356688994,-1500.0,0.00021568,2]
[381809874,1756356689004,-164.59267992,0.00021568,2]
[381809875,1756356689014,-1500.0,0.00021568,2]
[381809876,1756356689024,-1500.0,0.00021568,2]
[381809877,1756356689035,-1500.0,0.00021568,2]
[381809878,1756356689044,-1500.0,0.00021568,2]
[381809879,1756356689054,-1500.0,0.00021568,2]
[381809880,1756356689063,-1500.0,0.00021568,2]
[381809881,1756356689073,-1500.0,0.00021568,2]
[381809882,1756356689082,-859.24,0.0002157,2]
[381809883,1756356689092,-1705.38,0.0002157,2]
[381809884,1756356689102,-1694.54,0.0002157,2]
[381809885,1756356689112,-480.0,0.0002157,2]
[381809886,1756356689123,-480.0,0.00021572,2]
[381809887,1756356689132,-480.0,0.00021572,2]
[381809888,1756356689141,-529.67291817,0.000216,3]
[381809889,1756356689150,-12710.44222334,0.000216,3]
[381809890,1756356689160,-216.18903889,0.000216,3]
[381809891,1756356689169,-187.0,0.00021601,2]
[381809892,1756356689178,-224.052875,0.00021607,3]
[381809893,1756356689188,-179.691714,0.00021607,3]
[381809894,1756356689198,-1548.45003275,0.00021608,2]
[381809895,1756356689207,-187.0,0.00021609,2]
[381809896,1756356689218,-502.07979579,0.00021621,2]
[381809897,1756356689227,-764.06479288,0.00021621,2]
[381809898,1756356689237,-1008.88566815,0.00021621,2]
[381809899,1756356689246,-1000.0,0.00021621,2]
[381809900,1756356689256,-187.0,0.00021624,2]
[381809901,1756356689265,-373.86315767,0.00021627,2]
[381809902,1756356689274,-500.0,0.0002166,2]
[381809903,1756356689284,-536.12,0.0002166,2]
[381809904,1756356689294,-602.26,0.0002166,2]
[381809905,1756356689304,-1007.62,0.0002166,2]
[381809906,1756356689314,-873.01,0.0002166,2]
[381809907,1756356689323,-500.0,0.00021663,2]
[381809908,1756356689333,-201.93286099,0.00021666,2]
[381809909,1756356689342,-187.0,0.00021683,2]
[381809910,1756356689351,-300.0,0.00021684,20]
[381809911,1756356689361,-300.0,0.00021684,20]
[381809912,1756356689373,-300.0,0.00021684,20]
[381809913,1756356689382,-300.0,0.00021684,20]
[381809914,1756356689391,-300.0,0.00021684,20]
[381809915,1756356689400,-300.0,0.00021684,20]
[381809916,1756356689409,-300.0,0.00021684,20]
[381809917,1756356689419,-300.0,0.00021684,20]
[381809918,1756356689428,-300.0,0.00021684,20]
[381809919,1756356689437,-300.0,0.00021684,20]
[381809920,1756356689447,-300.0,0.00021684,20]
[381809921,1756356689456,-300.0,0.00021684,20]
[381809922,1756356689465,-300.0,0.00021684,20]
[381809923,1756356689475,-300.0,0.00021684,20]
[381809924,1756356689483,-300.0,0.00021684,20]
[381809925,1756356689493,-2727.86,0.00021684,2]
[381809926,1756356689503,-764.1,0.00021684,2]
[381809927,1756356689513,-1625.43,0.00021684,2]
[381809928,1756356689524,-560.22,0.00021684,2]
[381809929,1756356689536,-600.0,0.00021685,20]
[381809930,1756356689546,-500.0,0.00021699,2]
[381809931,1756356689556,-500.75190386,0.00021699,2]
[381809932,1756356689566,-500.0,0.00021699,2]
[381809933,1756356689575,-500.0,0.00021699,2]
[381809934,1756356689585,-500.0,0.00021699,2]
[381809935,1756356689594,-500.0,0.00021699,2]
[381809936,1756356689605,-500.0,0.00021699,2]
[381809937,1756356689614,-151.0,0.00021699,2]
[381809938,1756356689628,-500.0,0.00021699,2]
[381809939,1756356689638,-151.0,0.00021699,2]
[381809940,1756356689647,-151.0,0.00021699,2]
[381809941,1756356689656,-151.0,0.00021699,2]
[381809942,1756356689665,-1093.0,0.00021699,2]
[381809943,1756356689674,-152.26199405,0.00021699,2]
[381809944,1756356689683,-151.0,0.00021699,2]
[381809945,1756356689692,-500.0,0.00021699,2]
[381809946,1756356689702,-151.0,0.00021699,2]
[381809947,1756356689712,-500.0,0.00021699,2]
[381809948,1756356689721,-151.0,0.00021699,2]
[381809949,1756356689731,-500.0,0.00021699,2]
[381809950,1756356689740,-500.0,0.00021699,2]
[381809951,1756356689749,-151.0,0.00021699,2]
[381809952,1756356689758,-500.0,0.00021699,2]
[381809953,1756356689768,-500.0,0.00021699,2]
[381809954,1756356689777,-151.0,0.00021699,2]
[381809955,1756356689786,-500.0,0.00021699,2]
[381809956,1756356689796,-500.0,0.00021699,2]
[381809957,1756356689806,-198.0,0.00021699,2]
[381809958,1756356689815,-304.21395486,0.00021699,2]
[381809959,1756356689825,-152.05357122,0.00021699,2]
[381809960,1756356689835,-198.0,0.00021699,2]
[381809961,1756356689844,-150.0,0.00021715,2]
[381809962,1756356689853,-480.0,0.00021758,2]
[381809963,1756356689863,-939.37,0.00021758,2]
[381809964,1756356689875,-500.63,0.00021758,2]